[Event "V Open Semana Santa Alicante 2021"]
[Site "Alicante"]
[Date "2021.04.02"]
[Round "4.7"]
[White "Vergara Anton, Diego"]
[Black "Aranda Marin, Cristian"]
[Result "0-1"]
[ECO "A46"]
[WhiteElo "2175"]
[BlackElo "2361"]
[Annotator "ChessBase"]
[PlyCount "106"]
[EventDate "2021.03.31"]
[EventType "swiss"]
[EventCountry "ESP"]
[SourceTitle "playchess.com"]
[Source "ChessBase"]
[SourceQuality "1"]
[TimeControl "5400+30"]

1. d4 {[%emt 0:00:00]} Nf6 {[%emt 0:00:00]} 2. Nf3 {[%emt 0:00:00]} e6 {[%emt 0:00:19]} 3. g3 {[%emt 0:00:00]} c5 {[%emt 0:00:25]} 4. Bg2 {[%emt 0:00:25]} cxd4 {[%emt 0:00:25]} 5. Nxd4 {[%emt 0:00:17]} d5 {[%emt 0:00:14]} 6. O-O {[%emt 0:01:07]} e5 {[%emt 0:01:52]} 7. Nf3 {[%emt 0:00:06]} Nc6 {[%emt 0:00:39]} 8. c4 {[%emt 0:00:49]} d4 {[%emt 0:00:16]} 9. e3 {[%emt 0:00:31]} Be7 {[%emt 0:04:38]} 10. exd4 {[%emt 0:01:12]} exd4 {[%emt 0:00:09]} 11. Bf4 {[%emt 0:02:23]} O-O {[%emt 0:01:58]} 12. Ne5 {[%emt 0:00:43]} Qb6 {[%emt 0:01:49]} 13. Re1 {[%emt 0:01:54]} Be6 {[%emt 0:05:54]} 14. Nd2 {[%emt 0:05:50]} Rac8 {[%emt 0:02:27]} 15. b3 {[%emt 0:16:52]} Bb4 {[%emt 0:07:34]} 16. Nxc6 {[%emt 0:15:13]} bxc6 {[%emt 0:00:20]} 17. Rxe6 {[%emt 0:03:08]} fxe6 {[%emt 0:00:21]} 18. Ne4 {[%emt 0:01:30]} Nxe4 {[%emt 0:09:22]} 19. Bxe4 {[%emt 0:00:18]} Qc5 {[%emt 0:02:11]} 20. Qd3 {[%emt 0:04:36]} Qh5 {[%emt 0:00:38]} 21. a3 {[%emt 0:04:32]} Bc3 {[%emt 0:02:16]} 22. Rb1 {[%emt 0:02:50]} e5 {[%emt 0:05:13]} 23. Bc1 {[%emt 0:00:24]} Rf6 {[%emt 0:09:28]} 24. f3 {[%emt 0:01:15]} Rcf8 {[%emt 0:01:53]} 25. Kg2 {[%emt 0:01:53]} a5 {[%emt 0:03:46]} 26. a4 {[%emt 0:03:26]} Rb8 {[%emt 0:07:05]} 27. Bd2 {[%emt 0:02:52]} Bb4 {[%emt 0:05:06]} 28. Bxb4 {[%emt 0:00:33]} Rxb4 {[%emt 0:00:02]} 29. Qe2 {[%emt 0:03:28]} Qf7 {[%emt 0:07:47]} 30. Bc2 {[%emt 0:01:42]} Rb8 {[%emt 0:00:20]} 31. Qe4 {[%emt 0:01:55]} g6 {[%emt 0:00:27]} 32. Rd1 {[%emt 0:00:44]} Rf8 {[%emt 0:01:49]} 33. Rd3 {[%emt 0:00:47]} Qe7 {[%emt 0:01:27]} 34. Bd1 {[%emt 0:00:42]} Qc5 {[%emt 0:00:08]} 35. Bc2 {[%emt 0:01:27]} Re8 {[%emt 0:02:30]} 36. Rd1 {[%emt 0:01:30]} Ree6 {[%emt 0:00:06]} 37. Qe2 {[%emt 0:01:25]} Kg7 {[%emt 0:01:41]} 38. Be4 {[%emt 0:00:16]} Qb4 {[%emt 0:00:55]} 39. Rd3 {[%emt 0:00:26]} h5 {[%emt 0:01:54]} 40. h4 {[%emt 0:01:02]} Rf8 {[%emt 0:00:32]} 41. Qd1 {[%emt 0:00:31]} Rb8 {[%emt 0:01:10]} 42. Qc1 {[%emt 0:00:31]} Qe7 {[%emt 0:00:29]} 43. Qd2 {[%emt 0:01:20]} Rb4 {[%emt 0:00:17]} 44. Qc1 {[%emt 0:03:13]} Qf6 {[%emt 0:01:48]} 45. Kf2 {[%emt 0:03:12]} c5 {[%emt 0:02:08]} 46. Qe1 {[%emt 0:04:40]} Reb6 {[%emt 0:00:59]} 47. Rd1 {[%emt 0:00:31]} g5 {[%emt 0:02:14]} 48. hxg5 {[%emt 0:00:37]} Qxg5 {[%emt 0:00:01]} 49. Bc2 {[%emt 0:00:13]} Rxb3 {[%emt 0:00:14]} 50. Bxb3 {[%emt 0:01:53]} Rxb3 {[%emt 0:00:02]} 51. Kg2 {[%emt 0:00:57]} Rb2+ {[%emt 0:01:40]} 52. Kg1 {[%emt 0:01:13]} h4 {[%emt 0:01:10]} 53. f4 {[%emt 0:01:01]} exf4 {[%emt 0:00:31]} 0-1

[Event "V Open Semana Santa Alicante 2021"]
[Site "Alicante"]
[Date "2021.04.02"]
[Round "4.8"]
[White "Sierra Vallina, Lionel"]
[Black "Ibanez Aullana, Ramon"]
[Result "0-1"]
[ECO "B95"]
[WhiteElo "1809"]
[BlackElo "2276"]
[Annotator "ChessBase"]
[PlyCount "94"]
[EventDate "2021.03.31"]
[EventType "swiss"]
[EventCountry "ESP"]
[SourceTitle "playchess.com"]
[Source "ChessBase"]
[SourceQuality "1"]
[TimeControl "5400+30"]

1. e4 {[%emt 0:00:00]} c5 {[%emt 0:02:25]} 2. Nf3 {[%emt 0:00:10]} e6 {[%emt 0:00:29]} 3. d4 {[%emt 0:00:19]} cxd4 {[%emt 0:00:07]} 4. Nxd4 {[%emt 0:00:20]} Nf6 {[%emt 0:05:34]} 5. Nc3 {[%emt 0:00:16]} d6 {[%emt 0:00:18]} 6. Bg5 {[%emt 0:01:05]} a6 {[%emt 0:05:37]} 7. a4 {[%emt 0:05:05]} Qc7 {[%emt 0:12:01]} 8. Be2 {[%emt 0:03:10]} b6 {[%emt 0:01:55]} 9. O-O {[%emt 0:01:45]} Bb7 {[%emt 0:00:18]} 10. Bxf6 {[%emt 0:05:07]} gxf6 {[%emt 0:00:27]} 11. Bh5 {[%emt 0:03:29]} Qe7 {[%emt 0:13:13]} 12. Qg4 {[%emt 0:06:31]} Kd8 {[%emt 0:07:07]} 13. Rad1 {[%emt 0:04:31]} Nd7 {[%emt 0:01:11]} 14. f4 {[%emt 0:01:20]} Rc8 {[%emt 0:03:56]} 15. e5 {[%emt 0:08:26]} fxe5 {[%emt 0:07:15]} 16. fxe5 {[%emt 0:00:10]} Nxe5 {[%emt 0:01:24]} 17. Qg3 {[%emt 0:00:18]} Kc7 {[%emt 0:05:35]} 18. Ndb5+ {[%emt 0:04:37]} axb5 {[%emt 0:00:27]} 19. Nxb5+ {[%emt 0:00:04]} Kb8 {[%emt 0:00:19]} 20. Nxd6 {[%emt 0:00:21]} Qxd6 {[%emt 0:00:20]} 21. Rxd6 {[%emt 0:00:15]} Bxd6 {[%emt 0:00:02]} 22. Qb3 {[%emt 0:03:03]} Rhg8 {[%emt 0:03:30]} 23. Bf3 {[%emt 0:02:33]} Nxf3+ {[%emt 0:03:14]} 24. Rxf3 {[%emt 0:00:32]} Bc5+ {[%emt 0:02:11]} 25. Kf1 {[%emt 0:00:18]} Ba6+ {[%emt 0:03:11]} 26. c4 {[%emt 0:02:00]} Bd4 {[%emt 0:00:34]} 27. Rc3 {[%emt 0:00:11]} Ka7 {[%emt 0:03:12]} 28. a5 {[%emt 0:01:12]} bxa5 {[%emt 0:00:50]} 29. Rc2 {[%emt 0:00:56]} Rxc4 {[%emt 0:02:25]} 30. Rxc4 Rc8 {[%emt 0:00:11]} 31. Qf3 {[%emt 0:00:55]} Rxc4 {[%emt 0:00:13]} 32. Ke1 {[%emt 0:00:15]} Rc1+ {[%emt 0:02:34]} 33. Kd2 {[%emt 0:00:08]} Rf1 {[%emt 0:00:22]} 34. Qe4 {[%emt 0:00:59]} Rf2+ {[%emt 0:00:25]} 35. Kd1 {[%emt 0:00:33]} e5 {[%emt 0:00:55]} 36. Qc6 {[%emt 0:01:02]} Bb6 {[%emt 0:01:44]} 37. Qd7+ {[%emt 0:00:20]} Bb7 {[%emt 0:00:16]} 38. b4 {[%emt 0:00:36]} Rf4 {[%emt 0:02:53]} 39. Qb5 {[%emt 0:01:13]} Rd4+ {[%emt 0:01:26]} 40. Kc1 {[%emt 0:00:13]} Rd5 {[%emt 0:03:16]} 41. Qa4 {[%emt 0:00:45]} e4 {[%emt 0:00:30]} 42. bxa5 {[%emt 0:00:18]} Rxa5 {[%emt 0:00:19]} 43. Qb3 {[%emt 0:01:14]} e3 {[%emt 0:00:21]} 44. Kd1 {[%emt 0:00:09]} Ra1+ {[%emt 0:05:15]} 45. Ke2 {[%emt 0:00:13]} Ba6+ {[%emt 0:00:11]} 46. Kf3 {[%emt 0:00:21]} Rf1+ {[%emt 0:00:10]} 47. Kg4 {[%emt 0:00:27]} e2 {[%emt 0:00:15]} 0-1

[Event "V Open Semana Santa Alicante 2021"]
[Site "Alicante"]
[Date "2021.04.02"]
[Round "4.9"]
[White "Gomez Anadon, Daniel"]
[Black "Donado-Mazarron Gomez, Miguel"]
[Result "0-1"]
[ECO "B51"]
[WhiteElo "2234"]
[BlackElo "2184"]
[Annotator "NA"]
[PlyCount "102"]
[EventDate "2021.03.31"]
[EventType "swiss"]
[EventCountry "ESP"]
[SourceTitle "playchess.com"]
[Source "ChessBase"]
[SourceQuality "1"]
[TimeControl "5400+30"]

1. e4 {[%emt 0:01:17]} c5 {[%emt 0:00:00]} 2. Nf3 {[%emt 0:00:06]} d6 {[%emt 0:00:00]} 3. Bb5+ {[%emt 0:00:26]} Nd7 {[%emt 0:00:18]} 4. c3 {[%emt 0:00:43]} Ngf6 {[%emt 0:00:34]} 5. Bd3 {[%emt 0:00:31]} Ne5 {[%emt 0:00:23]} 6. Be2 {[%emt 0:03:23]} Nxf3+ {[%emt 0:00:18]} 7. Bxf3 {[%emt 0:00:09]} e5 {[%emt 0:00:19]} 8. d4 {[%emt 0:02:07]} Be7 {[%emt 0:00:15]} 9. dxe5 {[%emt 0:03:02]} dxe5 {[%emt 0:00:07]} 10. Qxd8+ {[%emt 0:01:26]} Bxd8 {[%emt 0:01:28]} 11. Nd2 {[%emt 0:02:16]} O-O {[%emt 0:06:38]} 12. Be2 {[%emt 0:00:50]} a6 {[%emt 0:09:46]} 13. a4 {[%emt 0:02:10]} b6 {[%emt 0:05:14]} 14. f3 {[%emt 0:00:45]} Bc7 {[%emt 0:03:46]} 15. Nc4 {[%emt 0:02:48]} Bd7 {[%emt 0:07:09]} 16. Bg5 {[%emt 0:07:40]} Nh5 {[%emt 0:01:20]} 17. Be7 {[%emt 0:19:40]} Rfe8 {[%emt 0:01:11]} 18. Bd6 {[%emt 0:02:41]} Bxd6 {[%emt 0:00:44]} 19. Nxd6 {[%emt 0:00:06]} Red8 {[%emt 0:01:55]} 20. Bc4 {[%emt 0:12:15]} Be6 {[%emt 0:01:49]} 21. Bxe6 {[%emt 0:07:33]} Rxd6 {[%emt 0:00:32]} 22. Bc4 {[%emt 0:03:37]} Rad8 {[%emt 0:10:03]} 23. O-O {[%emt 0:01:40]} Rd2 {[%emt 0:11:30]} 24. g3 {[%emt 0:02:54]} a5 {[%emt 0:08:26]} 25. Rab1 {[%emt 0:01:32]} Kf8 {[%emt 0:03:05]} 26. Bd5 {[%emt 0:03:49]} f5 {[%emt 0:03:23]} 27. Rf2 {[%emt 0:11:42]} Rxf2 {[%emt 0:03:17]} 28. Kxf2 {[%emt 0:00:02]} Nf6 {[%emt 0:00:27]} 29. c4 {[%emt 0:00:16]} fxe4 {[%emt 0:01:11]} 30. fxe4 {[%emt 0:00:04]} Ke7 {[%emt 0:01:10]} 31. Ke2 {[%emt 0:00:30]} h6 {[%emt 0:04:59]} 32. Rf1 {[%emt 0:00:16]} Rf8 {[%emt 0:00:22]} 33. Rf5 {[%emt 0:00:38]} Nd7 {[%emt 0:00:51]} 34. Rxf8 {[%emt 0:00:49]} Nxf8 {[%emt 0:00:46]} 35. Kf3 {[%emt 0:00:25]} Kf6 {[%emt 0:02:00]} 36. Kg4 {[%emt 0:00:41]} Kg6 {[%emt 0:03:19]} 37. Kf3 {[%emt 0:00:24]} h5 {[%emt 0:00:36]} 38. Ke3 {[%emt 0:02:26]} Kg5 {[%emt 0:01:15]} 39. Kf3 {[%emt 0:00:36]} Kf6 {[%emt 0:01:58]} 40. h4 {[%emt 0:03:04]} g5 {[%emt 0:01:04]} 41. hxg5+ {[%emt 0:00:27]} Kxg5 {[%emt 0:00:08]} 42. Bf7 {[%emt 0:00:19]} h4 {[%emt 0:01:06]} 43. gxh4+ {[%emt 0:00:05]} Kxh4 {[%emt 0:00:05]} 44. Bd5 {[%emt 0:00:30]} Ng6 {[%emt 0:00:15]} 45. Bf7 {[%emt 0:01:26]} Nf4 {[%emt 0:00:14]} 46. Ke3 {[%emt 0:00:16]} Kg3 {[%emt 0:00:15]} 47. Be8 {[%emt 0:00:42]} Ng2+ {[%emt 0:01:05]} 48. Kd3 {[%emt 0:01:44]} Kf4 {[%emt 0:01:19]} 49. Bh5 {[%emt 0:00:37]} Nh4 {[%emt 0:00:51]} 50. Bd1 {[%emt 0:01:01]} Nf3 {[%emt 0:00:32]} 51. Be2 {[%emt 0:00:08]} Ng5 {[%emt 0:00:11]} 0-1

[Event "V Open Semana Santa Alicante 2021"]
[Site "Alicante"]
[Date "2021.04.02"]
[Round "4.10"]
[White "Vilanova Corbi, Jorge"]
[Black "Cabanas Jimenez, Manuel"]
[Result "1-0"]
[ECO "A05"]
[WhiteElo "2200"]
[BlackElo "2137"]
[Annotator "NA"]
[PlyCount "71"]
[EventDate "2021.03.31"]
[EventType "swiss"]
[EventCountry "ESP"]
[SourceTitle "playchess.com"]
[Source "ChessBase"]
[SourceQuality "1"]
[TimeControl "5400+30"]

1. Nf3 Nf6 2. c4 g6 3. Nc3 d5 4. cxd5 Nxd5 5. h4 Bg7 6. e4 Nxc3 7. dxc3 Qxd1+ 8. Kxd1 Nc6 9. h5 Bg4 10. h6 Bf6 11. Kc2 e5 12. Be3 Nd8 13. Nd2 Be6 14. g3 Be7 15. Bb5+ c6 16. Bd3 f6 17. f4 Bd6 18. Raf1 b6 19. f5 gxf5 20. exf5 Bd5 21. Rh4 Rg8 22. c4 Bf7 23. Ne4 Be7 24. g4 Nb7 25. g5 fxg5 26. Rg4 O-O-O 27. f6 Bf8 28. Rxg5 Rh8 29. Rxe5 Bg6 30. Nf2 Bd6 31. Rg5 Bxd3+ 32. Nxd3 Rhe8 33. Rf3 Bf8 34. Re5 Nd6 35. f7 Rxe5 36. Nxe5 1-0

[Event "V Open Semana Santa Alicante 2021"]
[Site "Alicante"]
[Date "2021.04.02"]
[Round "5.2"]
[White "Del Rio De Angelis, Salvador G."]
[Black "Narciso Dublan, Marc"]
[Result "1/2-1/2"]
[ECO "D68"]
[WhiteElo "2510"]
[BlackElo "2521"]
[Annotator "ChessBase"]
[PlyCount "27"]
[EventDate "2021.03.31"]
[EventType "swiss"]
[EventCountry "ESP"]
[SourceTitle "playchess.com"]
[Source "ChessBase"]
[SourceQuality "1"]
[TimeControl "5400+30"]

1. d4 {[%emt 0:00:00]} Nf6 {[%emt 0:00:00]} 2. c4 {[%emt 0:00:00]} e6 {[%emt 0:00:12]} 3. Nc3 {[%emt 0:00:09]} d5 {[%emt 0:00:17]} 4. Bg5 {[%emt 0:00:18]} Be7 {[%emt 0:00:22]} 5. e3 {[%emt 0:00:12]} O-O {[%emt 0:00:26]} 6. Nf3 {[%emt 0:00:21]} Nbd7 {[%emt 0:00:38]} 7. Rc1 {[%emt 0:00:24]} c6 {[%emt 0:00:38]} 8. Bd3 {[%emt 0:00:37]} dxc4 {[%emt 0:00:27]} 9. Bxc4 {[%emt 0:00:10]} Nd5 {[%emt 0:00:08]} 10. Bxe7 {[%emt 0:01:35]} Qxe7 {[%emt 0:00:10]} 11. O-O {[%emt 0:01:18]} Nxc3 {[%emt 0:01:06]} 12. Rxc3 {[%emt 0:00:09]} e5 {[%emt 0:00:23]} 13. Bb3 {[%emt 0:00:59]} exd4 {[%emt 0:04:16]} 14. exd4 {[%emt 0:00:14]} 1/2-1/2

[Event "V Open Semana Santa Alicante 2021"]
[Site "Alicante"]
[Date "2021.04.02"]
[Round "5.3"]
[White "Movsziszian, Karen"]
[Black "Aranda Marin, Cristian"]
[Result "1-0"]
[ECO "A08"]
[WhiteElo "2471"]
[BlackElo "2361"]
[Annotator "ChessBase"]
[PlyCount "47"]
[EventDate "2021.03.31"]
[EventType "swiss"]
[EventCountry "ESP"]
[SourceTitle "playchess.com"]
[Source "ChessBase"]
[SourceQuality "1"]
[TimeControl "5400+30"]

1. e4 {[%emt 0:00:00]} c5 {[%emt 0:03:15]} 2. Nf3 {[%emt 0:00:14]} e6 {[%emt 0:00:41]} 3. d3 {[%emt 0:04:35]} Nc6 {[%emt 0:01:41]} 4. g3 {[%emt 0:00:03]} d5 {[%emt 0:01:38]} 5. Nbd2 {[%emt 0:00:06]} Nf6 {[%emt 0:00:44]} 6. Bg2 {[%emt 0:00:05]} Be7 {[%emt 0:01:03]} 7. O-O {[%emt 0:00:02]} O-O {[%emt 0:00:42]} 8. Re1 {[%emt 0:00:04]} b5 {[%emt 0:07:49]} 9. exd5 {[%emt 0:00:07]} Nxd5 {[%emt 0:00:23]} 10. c3 {[%emt 0:06:47]} Bb7 {[%emt 0:04:35]} 11. Qe2 {[%emt 0:00:50]} Qd7 {[%emt 0:06:00]} 12. Nb3 {[%emt 0:01:55]} Rfd8 {[%emt 0:04:28]} 13. Bg5 {[%emt 0:02:33]} a6 {[%emt 0:20:53]} 14. Rad1 {[%emt 0:06:26]} Rac8 {[%emt 0:02:44]} 15. c4 {[%emt 0:05:46]} Nb6 {[%emt 0:16:15]} 16. cxb5 {[%emt 0:04:36]} axb5 {[%emt 0:00:12]} 17. d4 {[%emt 0:00:02]} c4 {[%emt 0:03:35]} 18. Nc5 {[%emt 0:01:33]} Qc7 {[%emt 0:02:42]} 19. Bf4 {[%emt 0:07:19]} Bd6 {[%emt 0:00:28]} 20. Nxe6 {[%emt 0:00:13]} fxe6 {[%emt 0:07:04]} 21. Qxe6+ {[%emt 0:00:13]} Kf8 {[%emt 0:00:46]} 22. Ng5 {[%emt 0:00:22]} g6 {[%emt 0:00:16]} 23. Qf6+ {[%emt 0:01:34]} Kg8 {[%emt 0:00:21]} 24. Bh3 1-0

[Event "V Open Semana Santa Alicante 2021"]
[Site "Alicante"]
[Date "2021.04.02"]
[Round "5.4"]
[White "Serarols Mabras, Bernat"]
[Black "Garcia Brion, Eduardo"]
[Result "1-0"]
[ECO "E40"]
[WhiteElo "2358"]
[BlackElo "2192"]
[Annotator "ChessBase"]
[PlyCount "97"]
[EventDate "2021.03.31"]
[EventType "swiss"]
[EventCountry "ESP"]
[SourceTitle "playchess.com"]
[Source "ChessBase"]
[SourceQuality "1"]
[TimeControl "5400+30"]

1. d4 {[%emt 0:00:00]} Nf6 {[%emt 0:00:00]} 2. c4 {[%emt 0:00:00]} e6 {[%emt 0:00:00]} 3. Nc3 {[%emt 0:01:02]} Bb4 {[%emt 0:00:00]} 4. e3 {[%emt 0:00:02]} d6 {[%emt 0:02:09]} 5. Nge2 {[%emt 0:02:04]} O-O {[%emt 0:01:00]} 6. a3 {[%emt 0:00:53]} Bxc3+ {[%emt 0:00:06]} 7. Nxc3 {[%emt 0:00:07]} Qe7 {[%emt 0:00:48]} 8. Be2 {[%emt 0:02:37]} e5 {[%emt 0:00:42]} 9. O-O {[%emt 0:03:50]} Re8 {[%emt 0:06:52]} 10. b3 {[%emt 0:12:29]} Nbd7 {[%emt 0:25:57]} 11. Bb2 {[%emt 0:02:06]} c6 {[%emt 0:04:19]} 12. b4 {[%emt 0:08:07]} Nf8 {[%emt 0:04:02]} 13. Qd2 {[%emt 0:09:08]} Bf5 {[%emt 0:01:27]} 14. Rfd1 {[%emt 0:08:29]} Rad8 {[%emt 0:02:21]} 15. d5 {[%emt 0:00:23]} Ng6 {[%emt 0:13:16]} 16. f3 {[%emt 0:04:40]} cxd5 {[%emt 0:04:17]} 17. cxd5 {[%emt 0:00:55]} h5 {[%emt 0:02:25]} 18. e4 {[%emt 0:00:14]} Bc8 {[%emt 0:00:56]} 19. Bf1 {[%emt 0:05:16]} Nh7 {[%emt 0:00:40]} 20. Qf2 {[%emt 0:01:56]} Nf4 {[%emt 0:09:40]} 21. Qxa7 {[%emt 0:02:02]} g5 {[%emt 0:00:17]} 22. Ne2 {[%emt 0:08:44]} f5 {[%emt 0:01:20]} 23. Ng3 {[%emt 0:06:34]} g4 {[%emt 0:03:05]} 24. fxg4 {[%emt 0:00:24]} fxg4 {[%emt 0:00:37]} 25. Ne2 {[%emt 0:02:42]} Rf8 {[%emt 0:00:53]} 26. Nxf4 {[%emt 0:02:13]} Rxf4 {[%emt 0:00:15]} 27. Bc1 {[%emt 0:00:23]} Rf7 {[%emt 0:03:36]} 28. Bh6 {[%emt 0:05:10]} Rf6 {[%emt 0:04:52]} 29. Qe3 {[%emt 0:01:45]} Rg6 {[%emt 0:00:01]} 30. Bd3 {[%emt 0:01:39]} g3 {[%emt 0:05:25]} 31. h3 {[%emt 0:02:25]} Qh4 {[%emt 0:00:07]} 32. Rf1 {[%emt 0:01:36]} Nf6 {[%emt 0:00:42]} 33. Bg5 {[%emt 0:01:16]} Rxg5 {[%emt 0:00:10]} 34. Rxf6 {[%emt 0:00:06]} Rg7 {[%emt 0:00:44]} 35. Rf3 {[%emt 0:01:49]} Bxh3 {[%emt 0:00:57]} 36. gxh3 {[%emt 0:00:17]} Qxh3 {[%emt 0:00:04]} 37. Ra2 {[%emt 0:00:44]} h4 {[%emt 0:00:14]} 38. Rg2 {[%emt 0:00:54]} Rc8 {[%emt 0:00:58]} 39. Bf1 {[%emt 0:01:19]} Qg4 {[%emt 0:00:08]} 40. Be2 {[%emt 0:00:25]} Qh3 {[%emt 0:00:44]} 41. Bf1 {[%emt 0:00:08]} Qg4 {[%emt 0:00:06]} 42. a4 {[%emt 0:00:22]} Rc1 {[%emt 0:00:28]} 43. Qxc1 {[%emt 0:00:19]} Qxf3 {[%emt 0:00:06]} 44. Qc8+ {[%emt 0:00:01]} Kh7 {[%emt 0:00:20]} 45. Qf5+ {[%emt 0:01:20]} Qxf5 {[%emt 0:00:06]} 46. exf5 {[%emt 0:00:01]} Kh6 {[%emt 0:03:03]} 47. Rc2 {[%emt 0:00:39]} Kg5 {[%emt 0:00:03]} 48. Rc4 {[%emt 0:00:59]} b5 {[%emt 0:00:36]} 49. axb5 {[%emt 0:00:15]} 1-0

[Event "V Open Semana Santa Alicante 2021"]
[Site "Alicante"]
[Date "2021.04.02"]
[Round "5.5"]
[White "Ibanez Aullana, Ramon"]
[Black "Guardiola Guillot, Lucas"]
[Result "1-0"]
[ECO "C18"]
[WhiteElo "2276"]
[BlackElo "2017"]
[Annotator "ChessBase"]
[PlyCount "101"]
[EventDate "2021.03.31"]
[EventType "swiss"]
[EventCountry "ESP"]
[SourceTitle "playchess.com"]
[Source "ChessBase"]
[SourceQuality "1"]
[TimeControl "5400+30"]

1. e4 {[%emt 0:05:25]} e6 {[%emt 0:00:00]} 2. d4 {[%emt 0:02:31]} d5 {[%emt 0:00:00]} 3. Nc3 {[%emt 0:00:16]} Bb4 {[%emt 0:00:00]} 4. e5 {[%emt 0:00:28]} c5 {[%emt 0:00:06]} 5. a3 {[%emt 0:00:27]} Bxc3+ {[%emt 0:00:17]} 6. bxc3 {[%emt 0:00:02]} Nc6 {[%emt 0:00:13]} 7. a4 {[%emt 0:03:56]} f6 {[%emt 0:03:29]} 8. Nf3 {[%emt 0:03:51]} fxe5 {[%emt 0:01:01]} 9. dxe5 {[%emt 0:02:34]} Qc7 {[%emt 0:00:48]} 10. Bb5 {[%emt 0:06:39]} Bd7 {[%emt 0:02:49]} 11. O-O {[%emt 0:00:44]} Nge7 {[%emt 0:03:24]} 12. c4 {[%emt 0:04:18]} a6 {[%emt 0:13:38]} 13. cxd5 {[%emt 0:01:49]} Nxd5 {[%emt 0:03:46]} 14. Bc4 {[%emt 0:02:06]} Nb6 {[%emt 0:03:27]} 15. Bd3 {[%emt 0:02:11]} O-O-O {[%emt 0:03:12]} 16. Re1 {[%emt 0:03:23]} Be8 {[%emt 0:04:25]} 17. Ng5 {[%emt 0:02:02]} Qd7 {[%emt 0:05:13]} 18. Qg4 {[%emt 0:12:16]} h6 {[%emt 0:22:22]} 19. Nf3 {[%emt 0:07:07]} Qe7 {[%emt 0:08:40]} 20. Bb2 {[%emt 0:22:40]} Nb4 {[%emt 0:02:20]} 21. a5 {[%emt 0:00:45]} Na4 {[%emt 0:03:52]} 22. Bc1 {[%emt 0:01:11]} Nc3 {[%emt 0:08:24]} 23. Ra3 {[%emt 0:02:58]} Nxd3 {[%emt 0:02:03]} 24. cxd3 {[%emt 0:00:03]} Nb5 {[%emt 0:00:08]} 25. Rb3 {[%emt 0:01:50]} Bc6 {[%emt 0:00:32]} 26. Be3 {[%emt 0:00:47]} Rhf8 {[%emt 0:03:35]} 27. Rc1 {[%emt 0:00:25]} Bxf3 {[%emt 0:01:03]} 28. gxf3 {[%emt 0:00:07]} Nd4 {[%emt 0:00:27]} 29. Bxd4 {[%emt 0:02:19]} Rxd4 {[%emt 0:00:06]} 30. Qxd4 {[%emt 0:00:32]} Qg5+ {[%emt 0:00:02]} 31. Qg4 {[%emt 0:00:13]} Qxc1+ {[%emt 0:00:05]} 32. Kg2 {[%emt 0:00:01]} Rf5 {[%emt 0:00:32]} 33. h4 {[%emt 0:00:15]} Qf4 {[%emt 0:01:18]} 34. Rc3 {[%emt 0:05:48]} Qxg4+ {[%emt 0:00:16]} 35. fxg4 {[%emt 0:00:01]} Rxe5 {[%emt 0:00:02]} 36. d4 {[%emt 0:02:42]} Rd5 {[%emt 0:00:42]} 37. Rxc5+ {[%emt 0:01:44]} Kd7 {[%emt 0:01:34]} 38. Rxd5+ {[%emt 0:00:55]} exd5 {[%emt 0:00:02]} 39. Kf3 {[%emt 0:00:06]} Kc6 {[%emt 0:01:35]} 40. Kf4 {[%emt 0:00:02]} b5 {[%emt 0:00:14]} 41. axb6 {[%emt 0:01:02]} a5 {[%emt 0:00:09]} 42. Ke3 {[%emt 0:00:39]} g5 {[%emt 0:01:17]} 43. hxg5 {[%emt 0:00:04]} hxg5 {[%emt 0:00:10]} 44. Kd3 {[%emt 0:02:11]} a4 {[%emt 0:00:57]} 45. Kc3 {[%emt 0:00:17]} Kxb6 {[%emt 0:02:07]} 46. Kb4 {[%emt 0:00:07]} a3 {[%emt 0:00:05]} 47. Kxa3 {[%emt 0:00:03]} Kb5 {[%emt 0:00:10]} 48. Kb3 {[%emt 0:00:02]} Ka5 {[%emt 0:00:09]} 49. Kc3 {[%emt 0:00:09]} Kb5 {[%emt 0:00:04]} 50. f4 {[%emt 0:00:43]} gxf4 {[%emt 0:01:33]} 51. g5 {[%emt 0:00:06]} 1-0

[Event "V Open Semana Santa Alicante 2021"]
[Site "Alicante"]
[Date "2021.04.02"]
[Round "5.6"]
[White "Donado-Mazarron Gomez, Miguel"]
[Black "Vilanova Corbi, Jorge"]
[Result "1/2-1/2"]
[ECO "D17"]
[WhiteElo "2184"]
[BlackElo "2200"]
[Annotator "ChessBase"]
[PlyCount "49"]
[EventDate "2021.03.31"]
[EventType "swiss"]
[EventCountry "ESP"]
[SourceTitle "playchess.com"]
[Source "ChessBase"]
[SourceQuality "1"]
[TimeControl "5400+30"]

1. d4 {[%emt 0:03:36]} d5 {[%emt 0:04:52]} 2. c4 {[%emt 0:00:08]} c6 {[%emt 0:00:19]} 3. Nc3 {[%emt 0:00:06]} Nf6 {[%emt 0:00:15]} 4. Nf3 {[%emt 0:00:06]} dxc4 {[%emt 0:00:48]} 5. a4 {[%emt 0:00:10]} Bf5 {[%emt 0:00:47]} 6. Ne5 {[%emt 0:00:16]} Nbd7 {[%emt 0:01:02]} 7. Nxc4 {[%emt 0:00:07]} Nb6 {[%emt 0:02:06]} 8. Ne5 {[%emt 0:01:04]} a5 {[%emt 0:00:38]} 9. f3 {[%emt 0:02:52]} Nfd7 {[%emt 0:01:22]} 10. Nxd7 {[%emt 0:02:37]} Nxd7 {[%emt 0:00:21]} 11. e4 {[%emt 0:00:55]} Bg6 {[%emt 0:00:19]} 12. Be2 {[%emt 0:07:13]} e5 {[%emt 0:04:54]} 13. dxe5 {[%emt 0:05:35]} Qb6 {[%emt 0:04:47]} 14. f4 {[%emt 0:07:31]} f5 {[%emt 0:03:59]} 15. exf5 {[%emt 0:10:38]} Bxf5 {[%emt 0:00:23]} 16. Bg4 {[%emt 0:06:45]} Bxg4 {[%emt 0:06:26]} 17. Qxg4 {[%emt 0:00:07]} O-O-O {[%emt 0:01:07]} 18. Bd2 {[%emt 0:06:56]} Kb8 {[%emt 0:13:26]} 19. O-O-O {[%emt 0:06:56]} Bb4 {[%emt 0:13:00]} 20. Qe2 {[%emt 0:04:18]} Nc5 {[%emt 0:06:22]} 21. Be3 {[%emt 0:05:25]} Bxc3 {[%emt 0:02:10]} 22. bxc3 {[%emt 0:01:12]} Qb3 {[%emt 0:00:21]} 23. Bxc5 {[%emt 0:10:53]} Qxc3+ {[%emt 0:00:09]} 24. Qc2 {[%emt 0:00:21]} Qa1+ {[%emt 0:00:06]} 25. Qb1 {[%emt 0:00:04]} 1/2-1/2